bitfinex/quotes_BTCUSD_20240818
["timestamp","ask_amount","ask_price","bid_price","bid_amount"]
[1723984405798,0.116225,60228.0,60227.0,0.10174073]
[1723984406456,0.116225,60228.0,60227.0,0.10874073]
[1723984407122,0.116225,60228.0,60227.0,0.11274073]
[1723984407361,0.348675,60228.0,60227.0,0.11274073]
[1723984407571,0.348675,60228.0,60227.0,0.10874073]
[1723984407986,0.116225,60228.0,60227.0,0.11174073]
[1723984408472,0.116223,60229.0,60227.0,0.11174073]
[1723984408965,0.116225,60228.0,60227.0,0.11174073]
[1723984409191,0.232439,60231.0,60227.0,0.11174073]
[1723984409427,0.116223,60229.0,60227.0,0.11174073]
[1723984409882,0.116223,60229.0,60227.0,0.10474073]
[1723984410078,0.116223,60229.0,60227.0,0.10174073]
[1723984410394,0.116223,60229.0,60227.0,0.10974073]
[1723984411313,0.116223,60229.0,60227.0,0.10774073]
[1723984411539,0.117223,60229.0,60227.0,0.10774073]
[1723984411809,0.001,60229.0,60227.0,0.10774073]
[1723984412320,0.001,60229.0,60227.0,0.10174073]
[1723984412561,0.001,60229.0,60227.0,0.22096673]
[1723984413686,0.001,60229.0,60227.0,0.10474073]
[1723984417206,0.117224,60229.0,60227.0,0.10474073]
[1723984417430,0.001,60229.0,60227.0,0.10474073]
[1723984418861,0.001,60229.0,60228.0,0.1398]
[1723984419119,0.001,60229.0,60228.0,0.97375771]
[1723984419344,0.001,60229.0,60228.0,1.0268651]
[1723984419580,0.000825,60240.0,60239.0,0.1398]
[1723984419817,0.000825,60240.0,60239.0,0.256003]
[1723984420038,0.000825,60240.0,60239.0,0.2748383]
[1723984421461,0.000825,60240.0,60239.0,0.5072453]
[1723984421666,0.000825,60240.0,60239.0,0.2748383]
[1723984421875,0.000825,60240.0,60239.0,0.1586353]
[1723984422334,0.000825,60240.0,60239.0,0.2748383]
[1723984422787,0.000825,60240.0,60239.0,0.5082453]
[1723984423813,0.000825,60240.0,60239.0,0.2758383]
[1723984424246,0.000825,60240.0,60239.0,0.5082453]
[1723984424454,0.000825,60240.0,60239.0,0.2758383]
[1723984426624,0.000825,60240.0,60239.0,0.7406523]
[1723984427481,0.000825,60240.0,60239.0,0.76101565]
[1723984428581,0.000825,60240.0,60239.0,0.81029039]
[1723984428799,0.000825,60240.0,60239.0,0.76101565]
[1723984432363,0.000825,60240.0,60239.0,0.99342265]
[1723984432553,0.000825,60240.0,60239.0,1.46029291]
[1723984432758,0.000825,60240.0,60239.0,1.36476187]
[1723984432965,0.000825,60240.0,60239.0,3.0221255]
[1723984433209,0.000825,60240.0,60239.0,2.8969617]
[1723984433337,0.000825,60240.0,60239.0,3.02008674]
[1723984433537,0.000825,60240.0,60239.0,2.8959617]
[1723984433745,0.000825,60240.0,60239.0,2.9089617]
[1723984434172,0.000825,60240.0,60239.0,2.8949617]
[1723984434386,1e-08,60241.0,60240.0,0.95511]
[1723984434594,1e-08,60241.0,60240.0,1.50113717]
[1723984434800,1e-08,60241.0,60240.0,1.51982501]
[1723984435182,1e-08,60241.0,60240.0,1.48562518]
[1723984435385,1e-08,60241.0,60240.0,1.36252103]
[1723984435788,1e-08,60241.0,60240.0,1.36551263]
[1723984436107,1e-08,60241.0,60240.0,1.36351263]
[1723984436284,1e-08,60241.0,60240.0,1.36551269]
[1723984436485,1e-08,60241.0,60240.0,1.47495939]
[1723984437254,1e-08,60241.0,60240.0,1.48895939]
[1723984437781,0.0004054,60254.0,60252.0,0.116177]
[1723984438188,0.0004054,60254.0,60253.0,0.01862943]
[1723984438815,0.0004054,60254.0,60251.0,0.25788]
[1723984438950,0.0004054,60254.0,60253.0,0.01862943]
[1723984439152,0.0004054,60254.0,60251.0,0.25788]
[1723984439349,0.0004054,60254.0,60253.0,0.01862943]
[1723984439554,0.0004054,60254.0,60251.0,0.25788]
[1723984439877,0.0004054,60254.0,60253.0,0.01862943]
[1723984440077,0.0004054,60254.0,60252.0,0.13481127]
[1723984440258,0.0004054,60254.0,60253.0,0.01862943]
[1723984440880,0.0004054,60254.0,60248.0,0.061]
[1723984441108,0.0004054,60254.0,60247.0,0.0807]
[1723984441336,0.116184,60250.0,60249.0,0.0186448]
[1723984441536,0.116184,60250.0,60248.0,0.01864864]
[1723984441740,0.116184,60249.0,60247.0,0.0807]
[1723984441944,0.232361,60251.0,60247.0,0.0807]
[1723984442145,0.116184,60249.0,60248.0,0.01864864]
[1723984442518,0.116184,60249.0,60245.0,0.061]
[1723984442725,0.116184,60249.0,60248.0,0.001]
[1723984442945,0.116184,60249.0,60248.0,0.01964864]
[1723984443152,0.116184,60249.0,60248.0,0.01864864]
[1723984443392,0.116184,60249.0,60245.0,0.061]
[1723984443612,0.116184,60249.0,60248.0,0.01864864]
[1723984444024,0.116187,60248.0,60245.0,0.061]
[1723984444240,0.259761,60251.0,60244.0,0.1417]
[1723984444457,0.116184,60249.0,60244.0,0.257893]
[1723984444689,0.116184,60249.0,60248.0,0.01864864]
[1723984444894,0.232361,60251.0,60248.0,0.01864864]
[1723984444895,0.116183,60250.0,60248.0,0.01864864]
[1723984445112,0.116183,60250.0,60244.0,0.257893]
[1723984445314,0.116183,60250.0,60245.0,0.01866018]
[1723984445518,0.116185,60249.0,60245.0,0.01866018]
[1723984445730,0.116187,60248.0,60245.0,0.01866018]
[1723984445935,0.232368,60250.0,60245.0,0.01866018]
[1723984445936,0.116183,60250.0,60245.0,0.01866018]
[1723984446140,0.116184,60249.0,60245.0,0.01866018]
[1723984446348,0.116187,60248.0,60245.0,0.01866018]
[1723984446551,0.232361,60251.0,60245.0,0.01866018]
[1723984446753,0.116185,60249.0,60245.0,0.01866018]
[1723984448327,0.116186,60248.0,60245.0,0.01866018]
[1723984449328,0.232366,60250.0,60245.0,0.01866018]
[1723984449620,0.116184,60249.0,60245.0,0.01866018]
[1723984450398,0.116182,60250.0,60246.0,0.1417]
[1723984450628,0.116187,60248.0,60246.0,0.09935265]
[1723984450874,0.116187,60248.0,60246.0,0.01865265]
[1723984451120,0.116187,60248.0,60244.0,0.0807]
[1723984451353,0.116187,60248.0,60245.0,0.01865505]
[1723984451588,0.259757,60252.0,60245.0,0.01865505]
[1723984451589,0.232371,60249.0,60245.0,0.01865505]
[1723984451835,0.34857,60246.0,60245.0,0.01865505]
[1723984452081,0.116196,60243.0,60241.0,0.1417]
[1723984452341,0.46476,60246.0,60241.0,0.1417]
[1723984452577,0.116198,60242.0,60241.0,0.1417]
[1723984452820,0.116195,60244.0,60241.0,0.1417]
[1723984453054,0.116198,60242.0,60241.0,0.1417]
[1723984453280,0.116201,60241.0,60237.0,0.061]
[1723984453540,0.116201,60241.0,60238.0,0.02034975]
[1723984453541,0.2324,60241.0,60238.0,0.02034975]
[1723984453788,0.2324,60241.0,60237.0,0.061]
[1723984453789,0.116202,60240.0,60237.0,0.061]
[1723984455031,0.116202,60240.0,60237.0,0.072]
[1723984455229,0.116199,60242.0,60237.0,0.072]
[1723984455439,0.116198,60242.0,60241.0,0.0009075]
[1723984455855,0.348594,60242.0,60241.0,0.0009075]
[1723984456471,0.116198,60242.0,60241.0,0.0009075]
[1723984457088,0.116198,60242.0,60241.0,0.0049075]
[1723984457921,0.116198,60242.0,60241.0,0.0129075]
[1723984458124,0.116198,60242.0,60241.0,0.0049075]
[1723984458356,0.116198,60242.0,60241.0,0.0009075]
[1723984458965,0.348594,60242.0,60241.0,0.0009075]
[1723984459372,0.349594,60242.0,60241.0,0.0019075]
[1723984459790,0.348594,60242.0,60241.0,0.01689558]
[1723984460195,0.350594,60242.0,60241.0,0.0009075]
[1723984460820,0.351594,60242.0,60241.0,0.0009075]
[1723984461224,0.350594,60242.0,60241.0,0.0009075]
[1723984461428,0.348594,60242.0,60241.0,0.0009075]
[1723984461638,0.349594,60242.0,60241.0,0.0009075]
[1723984461841,0.350594,60242.0,60241.0,0.0009075]
[1723984464190,0.58299,60242.0,60241.0,0.0009075]
[1723984464422,0.71849,60242.0,60241.0,0.0009075]
[1723984464634,0.950886,60242.0,60241.0,0.0009075]
[1723984465089,0.71849,60242.0,60241.0,0.0009075]
[1723984465292,0.68299,60242.0,60241.0,0.0009075]
[1723984473452,0.68294851,60242.0,60241.0,0.0009075]
[1723984475411,0.68290711,60242.0,60241.0,0.0009075]
[1723984478909,0.68290711,60242.0,60241.0,0.0801075]
[1723984479159,0.218198,60242.0,60241.0,0.1406075]
[1723984479679,0.218198,60242.0,60241.0,0.15413035]
[1723984480894,0.118198,60242.0,60241.0,0.15413035]
[1723984482853,0.002,60242.0,60241.0,0.15413035]
[1723984483114,0.118198,60242.0,60241.0,0.1406075]
[1723984483401,0.118198,60242.0,60241.0,0.15301199]
[1723984484379,0.002,60242.0,60241.0,0.15301199]
[1723984484862,0.118198,60242.0,60241.0,0.15301199]
[1723984485607,0.002,60242.0,60241.0,0.26921099]
[1723984486374,0.002,60242.0,60241.0,0.15301199]
[1723984487687,0.58299,60242.0,60241.0,0.01331199]
[1723984487895,0.815386,60242.0,60241.0,0.01331199]
[1723984488142,0.915386,60242.0,60241.0,0.01331199]
[1723984488396,0.915386,60242.0,60241.0,0.0009075]
[1723984499186,0.916686,60242.0,60241.0,0.0009075]
[1723984499410,0.915386,60242.0,60241.0,0.0009075]
[1723984500312,0.92524095,60242.0,60241.0,0.0009075]
[1723984503263,0.92606595,60242.0,60241.0,0.0009075]
[1723984505409,0.451419,60242.0,60241.0,0.1413075]
[1723984505623,0.683815,60242.0,60241.0,0.1413075]
[1723984505836,0.683815,60242.0,60241.0,0.15372487]
[1723984506040,0.683815,60242.0,60241.0,0.1413075]
[1723984506469,0.683815,60242.0,60241.0,0.0009075]
[1723984506716,0.451419,60242.0,60241.0,0.0009075]
[1723984506923,0.683815,60242.0,60241.0,0.0009075]
[1723984507344,0.916211,60242.0,60241.0,0.0009075]
[1723984507549,0.683815,60242.0,60241.0,0.0009075]
[1723984507749,0.916211,60242.0,60241.0,0.0009075]
[1723984507962,0.683815,60242.0,60241.0,0.0009075]
[1723984510556,0.916211,60242.0,60241.0,0.0009075]
[1723984510757,0.683815,60242.0,60241.0,0.0009075]
[1723984511626,0.952711,60242.0,60241.0,0.0009075]
[1723984512042,0.953711,60242.0,60241.0,0.0009075]
[1723984512461,0.952711,60242.0,60241.0,0.0009075]
[1723984512679,0.950711,60242.0,60241.0,0.0009075]
[1723984512886,0.951711,60242.0,60241.0,0.0019075]
[1723984513140,0.954711,60242.0,60241.0,0.0029075]
[1723984513351,1.05916713,60242.0,60241.0,0.0029075]
[1723984513565,0.956711,60242.0,60241.0,0.0029075]
[1723984514381,0.953711,60242.0,60241.0,0.0019075]
[1723984514589,0.951711,60242.0,60241.0,0.0019075]
[1723984514793,0.953711,60242.0,60241.0,0.0019075]
[1723984515002,0.952711,60242.0,60241.0,0.0009075]
[1723984515212,0.963711,60242.0,60241.0,0.0019075]
[1723984515419,1.219107,60242.0,60241.0,0.0019075]
[1723984515631,1.29385617,60242.0,60241.0,0.0019075]
[1723984515860,1.219107,60242.0,60241.0,0.0019075]
[1723984516060,1.222107,60242.0,60241.0,0.0029075]
[1723984516284,1.29684946,60242.0,60241.0,0.0029075]
[1723984516487,1.219107,60242.0,60241.0,0.0019075]
[1723984516689,1.28283601,60242.0,60241.0,0.0009075]
[1723984516904,1.211107,60242.0,60241.0,0.0019075]
[1723984517357,1.208107,60242.0,60241.0,0.0009075]
[1723984517571,1.211107,60242.0,60241.0,0.0019075]
[1723984518200,1.222107,60242.0,60241.0,0.0019075]
[1723984518640,1.28281225,60242.0,60241.0,0.0009075]
[1723984519057,1.29681225,60242.0,60241.0,0.0009075]
[1723984520113,1.236107,60242.0,60241.0,0.0009075]
[1723984520294,1.222107,60242.0,60241.0,0.0009075]
[1723984520767,1.236107,60242.0,60241.0,0.0009075]
[1723984520981,1.234107,60242.0,60241.0,0.0009075]
[1723984521190,1.200607,60242.0,60241.0,0.0009075]
[1723984524081,1.208707,60242.0,60241.0,0.0009075]
[1723984524294,1.236107,60242.0,60241.0,0.0009075]
[1723984524701,1.36338311,60242.0,60241.0,0.0009075]
[1723984525070,1.236107,60242.0,60241.0,0.0009075]
[1723984531737,1.198607,60242.0,60241.0,0.0834075]
[1723984531947,1.200607,60242.0,60241.0,0.0834075]
[1723984532441,1.200607,60242.0,60241.0,0.0009075]
[1723984536914,1.228007,60242.0,60241.0,0.0009075]
[1723984537127,1.468503,60242.0,60241.0,0.0009075]
[1723984537339,1.63865268,60242.0,60241.0,0.0009075]
[1723984537550,1.63965268,60242.0,60241.0,0.0009075]
[1723984537760,1.63865268,60242.0,60241.0,0.0009075]
[1723984537973,1.468503,60242.0,60241.0,0.0009075]
[1723984538181,1.199607,60242.0,60241.0,0.0009075]
[1723984538833,1.431003,60242.0,60241.0,0.0009075]
[1723984539050,1.433003,60242.0,60241.0,0.0009075]
[1723984539252,1.436303,60242.0,60241.0,0.0009075]
[1723984539470,1.435003,60242.0,60241.0,0.0009075]
[1723984540342,1.442103,60242.0,60241.0,0.0009075]
[1723984541885,1.5665116,60242.0,60241.0,0.0009075]
[1723984542709,1.442103,60242.0,60241.0,0.0009075]
[1723984544905,1.469503,60242.0,60241.0,0.0009075]
[1723984546508,1.470503,60242.0,60241.0,0.0009075]
[1723984550780,1.469503,60242.0,60241.0,0.0009075]
[1723984550997,1.470503,60242.0,60241.0,0.0009075]
[1723984551261,1.62690286,60242.0,60241.0,0.0009075]
[1723984551468,1.62590286,60242.0,60241.0,0.0009075]
[1723984552097,1.469503,60242.0,60241.0,0.0009075]
[1723984552301,1.434003,60242.0,60241.0,0.0009075]
[1723984552922,1.434003,60242.0,60235.0,0.0813]
[1723984552923,1.511304,60236.0,60235.0,0.0813]
[1723984553131,1.511304,60236.0,60231.0,0.1425]
[1723984553132,0.118217,60232.0,60231.0,0.1425]
[1723984553339,0.450651,60232.0,60231.0,0.1425]
[1723984553546,0.938519,60232.0,60231.0,0.1425]
[1723984553755,1.22071812,60232.0,60231.0,0.1425]
[1723984553957,1.170953,60232.0,60231.0,0.1425]
[1723984554394,1.22071812,60232.0,60231.0,0.1425]
[1723984554615,1.170953,60232.0,60231.0,0.1425]
[1723984554827,1.28548127,60232.0,60231.0,0.1425]
[1723984555079,1.184953,60232.0,60231.0,0.1425]
[1723984555491,1.28448127,60232.0,60231.0,0.1425]
[1723984555911,1.29948127,60232.0,60231.0,0.1425]
[1723984556123,1.29848127,60232.0,60231.0,0.1425]
[1723984556413,1.47003581,60232.0,60231.0,0.1425]
[1723984557052,1.29748127,60232.0,60231.0,0.1425]
[1723984557276,1.2847784,60232.0,60231.0,0.1425]
[1723984557498,1.25993928,60232.0,60231.0,0.1425]
[1723984557952,1.23505267,60232.0,60231.0,0.1425]
[1723984558414,1.18525013,60232.0,60231.0,0.1425]
[1723984559259,1.40661631,60232.0,60231.0,0.1425]
[1723984559464,1.43149382,60232.0,60231.0,0.1425]
[1723984559904,1.25993928,60232.0,60231.0,0.1425]
[1723984560113,1.3077784,60232.0,60231.0,0.1425]
[1723984560322,1.20825013,60232.0,60231.0,0.1425]
[1723984560529,1.21025013,60232.0,60231.0,0.1425]
[1723984560761,1.33484465,60232.0,60231.0,0.1425]
[1723984561177,1.33484465,60232.0,60231.0,0.1434086]
[1723984561845,1.21025013,60232.0,60231.0,0.1434086]
[1723984562066,1.33485837,60232.0,60231.0,0.1434086]
[1723984562268,1.21025013,60232.0,60231.0,0.1434086]
[1723984562473,1.29416222,60232.0,60231.0,0.1434086]
[1723984562676,1.29216222,60232.0,60231.0,0.1434086]
[1723984562898,1.20825013,60232.0,60231.0,0.1434086]
[1723984563328,1.21025013,60232.0,60231.0,0.0822086]
[1723984563737,1.20925013,60232.0,60231.0,0.0822086]
[1723984563941,1.21025013,60232.0,60231.0,0.0822086]
[1723984564602,1.20825013,60232.0,60231.0,0.0822086]
[1723984564804,1.18525013,60232.0,60231.0,0.1486086]
[1723984565217,1.30986777,60232.0,60231.0,0.1486086]
[1723984567182,1.47898113,60232.0,60231.0,0.1486086]
[1723984567389,1.30986777,60232.0,60231.0,0.1486086]
[1723984574081,1.2849404,60232.0,60231.0,0.1486086]
[1723984574295,1.18525013,60232.0,60231.0,0.1486086]
[1723984574891,1.2849404,60232.0,60231.0,0.1486086]
[1723984575101,1.18625013,60232.0,60231.0,0.1486086]
[1723984575303,1.18525013,60232.0,60231.0,0.1486086]
[1723984575513,1.2849404,60232.0,60231.0,0.1486086]
[1723984578104,0.66923067,60232.0,60231.0,0.1486086]
[1723984578313,0.61938213,60232.0,60231.0,0.1486086]
[1723984578519,0.38694813,60232.0,60231.0,0.1486086]
[1723984578737,0.38694813,60232.0,60231.0,0.16155485]
[1723984579144,0.61938213,60232.0,60231.0,0.16155485]
[1723984579348,0.60538213,60232.0,60231.0,0.1486086]
[1723984579982,0.60838213,60232.0,60231.0,0.1486086]
[1723984580183,0.59438213,60232.0,60231.0,0.1486086]
[1723984580588,0.69438213,60232.0,60231.0,0.1486086]
[1723984581611,0.70038213,60232.0,60231.0,0.1486086]
[1723984582246,0.93281613,60232.0,60231.0,0.1486086]
[1723984583494,1.01775331,60232.0,60231.0,0.1486086]
[1723984584090,0.93281613,60232.0,60231.0,0.1486086]
[1723984588467,0.93277463,60232.0,60231.0,0.1486086]
[1723984590092,0.23547263,60232.0,60231.0,0.1486086]
[1723984590296,0.225217,60232.0,60231.0,0.1486086]
[1723984590473,0.109,60232.0,60231.0,0.16148174]
[1723984590674,0.009,60232.0,60231.0,1.66148174]
[1723984590915,0.009,60232.0,60231.0,1.77770074]
[1723984591119,0.009,60232.0,60231.0,1.66148174]
[1723984591275,0.009,60232.0,60231.0,0.27770074]
[1723984592167,0.009,60232.0,60231.0,0.16148174]
[1723984592598,0.009,60232.0,60231.0,0.27770074]
[1723984592783,0.000826,60241.0,60231.0,0.62967797]
[1723984592934,0.117026,60241.0,60233.0,0.0828]
[1723984593143,0.116202,60240.0,60238.0,0.0661]
[1723984593358,0.116202,60240.0,60239.0,0.1489]
[1723984593560,0.116202,60240.0,60239.0,0.16173622]
[1723984594164,0.216202,60240.0,60239.0,0.16173622]
[1723984594650,0.1,60240.0,60239.0,0.16173622]
[1723984594848,0.216201,60240.0,60239.0,0.16173622]
[1723984595062,0.1,60240.0,60239.0,0.16173622]
[1723984595261,0.24128024,60241.0,60240.0,0.1489]
[1723984595683,0.24128024,60241.0,60240.0,0.14766422]
[1723984595892,0.22728024,60241.0,60240.0,0.14766422]
[1723984596107,0.22728024,60241.0,60240.0,0.13566422]
[1723984596925,0.22728024,60241.0,60240.0,0.13666422]
[1723984596926,0.24028024,60241.0,60240.0,0.13666422]
[1723984597136,0.25428024,60241.0,60240.0,0.13766422]
[1723984597586,0.244025,60241.0,60240.0,0.13766422]
[1723984598204,0.127826,60241.0,60240.0,0.13766422]
[1723984598849,0.244025,60241.0,60240.0,0.13766422]
[1723984601101,0.127826,60241.0,60240.0,0.13766422]
[1723984601255,0.027826,60241.0,60240.0,0.13766422]
[1723984602843,0.027826,60241.0,60240.0,0.25386522]
[1723984604273,0.027826,60241.0,60240.0,0.13766422]
[1723984606987,0.144025,60241.0,60240.0,0.13766422]
[1723984607410,0.144025,60241.0,60240.0,0.1249]
[1723984607615,0.971222,60241.0,60240.0,0.002]
[1723984607823,1.238721,60241.0,60240.0,0.002]
[1723984608034,1.275121,60241.0,60240.0,0.002]
[1723984608244,1.469154,60241.0,60240.0,0.002]
[1723984608453,1.298121,60241.0,60240.0,0.002]
[1723984608661,1.299121,60241.0,60240.0,0.002]
[1723984611927,1.298121,60241.0,60240.0,0.002]
[1723984612182,0.941222,60241.0,60240.0,0.0848]
[1723984612395,0.841222,60241.0,60240.0,0.1509]
[1723984612639,0.871222,60241.0,60240.0,0.1509]
[1723984613690,0.971222,60241.0,60240.0,0.1509]
[1723984614354,0.244025,60241.0,60240.0,0.1509]
[1723984614563,0.376424,60241.0,60240.0,0.1509]
[1723984615012,0.144025,60241.0,60240.0,0.16161907]
[1723984616320,0.244025,60241.0,60240.0,0.16161907]
[1723984616472,0.027826,60241.0,60240.0,0.16161907]
[1723984616674,0.027826,60241.0,60240.0,0.51022307]
[1723984616875,0.027826,60241.0,60240.0,0.27782007]
[1723984617075,0.027826,60241.0,60240.0,0.53063079]
[1723984617483,0.013826,60241.0,60240.0,0.50922307]
[1723984617885,0.013826,60241.0,60240.0,0.27782007]
[1723984618106,0.130025,60241.0,60240.0,0.16161907]
[1723984618263,0.013826,60241.0,60240.0,0.16061907]
[1723984618732,0.014826,60241.0,60240.0,0.16761907]
[1723984618979,0.118025,60241.0,60240.0,0.16661907]
[1723984619175,0.350424,60241.0,60240.0,0.16661907]
[1723984619380,0.350424,60241.0,60240.0,0.17161907]
[1723984619578,0.118025,60241.0,60240.0,0.16661907]
[1723984619997,0.119025,60241.0,60240.0,0.17661907]
[1723984620542,0.001826,60241.0,60240.0,0.16961907]
[1723984620739,0.000826,60241.0,60240.0,0.15961907]
[1723984620941,0.000826,60241.0,60240.0,0.16161907]
[1723984620942,0.117025,60241.0,60240.0,0.16161907]
[1723984621363,0.000826,60241.0,60240.0,0.16161907]
[1723984621557,0.000826,60241.0,60240.0,0.15961907]
[1723984621992,0.000826,60241.0,60240.0,0.16161907]
[1723984622435,0.000826,60241.0,60240.0,0.16661907]
[1723984622766,0.000826,60241.0,60240.0,0.51113167]
[1723984622973,0.000826,60241.0,60240.0,0.76394886]
[1723984623181,0.000826,60241.0,60240.0,1.00135186]
[1723984623556,0.000826,60241.0,60240.0,2.50135186]
[1723984623761,0.000826,60241.0,60240.0,2.26894886]
[1723984623965,0.000826,60241.0,60240.0,0.76894886]
[1723984624341,0.000826,60241.0,60240.0,0.76895111]
[1723984626541,0.0004054,60254.0,60249.0,0.725022]
[1723984626977,0.0004054,60254.0,60249.0,0.27176457]
[1723984627509,0.0004054,60254.0,60249.0,0.50413357]
[1723984627717,0.0004054,60254.0,60249.0,0.50513357]
[1723984627718,1.008,60250.0,60249.0,0.50513357]
[1723984629012,1.014,60250.0,60249.0,0.50513357]
[1723984629967,1.014,60250.0,60249.0,0.73750257]
[1723984630180,1.014,60250.0,60249.0,0.50513357]
[1723984630991,1.014,60250.0,60249.0,0.73750257]
[1723984631796,1.014,60250.0,60249.0,0.50513357]
[1723984632322,1.014,60250.0,60249.0,0.73750257]
[1723984632722,1.014,60250.0,60249.0,0.50513357]
[1723984632970,1.014,60250.0,60249.0,0.27276457]
[1723984633174,1.014,60250.0,60249.0,0.50513357]
[1723984633999,1.014,60250.0,60249.0,0.73750257]
[1723984635160,1.014826,60250.0,60249.0,0.73750257]
[1723984638291,1.014826,60250.0,60249.0,0.27276457]
[1723984638500,1.014826,60250.0,60249.0,0.38894957]
[1723984638711,1.014826,60250.0,60249.0,0.73750257]
[1723984639045,1.014826,60250.0,60249.0,0.50513357]
[1723984640294,1.014826,60250.0,60249.0,0.27276457]
[1723984641112,1.014826,60250.0,60249.0,0.50513357]
[1723984643550,1.014826,60250.0,60249.0,0.52554634]
[1723984643729,1.014826,60250.0,60249.0,0.5255464]
[1723984644579,1.014826,60250.0,60249.0,0.52554628]
[1723984644964,1.014826,60250.0,60249.0,0.29317728]
[1723984645261,1.014826,60250.0,60249.0,0.17699328]
[1723984645977,1.014826,60250.0,60249.0,0.40936228]
[1723984646186,1.014826,60250.0,60249.0,0.52554628]
[1723984648046,1.014826,60250.0,60249.0,0.29317728]
[1723984648253,1.014826,60250.0,60249.0,0.17699328]
[1723984650485,1.006826,60250.0,60249.0,0.17599328]
[1723984651142,0.006826,60250.0,60249.0,0.18099328]
[1723984651316,0.000826,60250.0,60249.0,0.29717728]
[1723984651552,0.000826,60250.0,60249.0,0.29917728]
[1723984652268,0.000826,60250.0,60249.0,0.18299328]
[1723984653594,0.000826,60250.0,60249.0,0.29917728]
[1723984654274,0.000826,60250.0,60249.0,0.18299328]
[1723984654644,0.000826,60250.0,60249.0,0.29917728]
[1723984655304,0.000826,60250.0,60249.0,0.33344766]
[1723984656148,0.000826,60250.0,60249.0,0.18298691]
[1723984656555,0.000826,60250.0,60249.0,0.18299198]
[1723984657639,0.349373,60250.0,60249.0,0.03889198]
[1723984657845,0.349373,60250.0,60249.0,0.01848057]
[1723984657846,0.615838,60250.0,60249.0,0.01848057]
[1723984658053,0.615838,60250.0,60249.0,0.007]
[1723984658054,0.948203,60250.0,60249.0,0.007]
[1723984659320,0.978203,60250.0,60249.0,0.007]
[1723984660064,0.449373,60250.0,60249.0,0.1418]
[1723984660219,0.449373,60250.0,60249.0,0.15321544]
[1723984660594,0.449373,60250.0,60249.0,0.1418]
[1723984660799,0.450373,60250.0,60249.0,0.1418]
[1723984660993,0.450373,60250.0,60249.0,0.15320851]
[1723984661205,0.449373,60250.0,60249.0,0.15420851]
[1723984661541,0.449373,60250.0,60249.0,0.15320851]
[1723984661756,0.450373,60250.0,60249.0,0.15420851]
[1723984666262,0.218008,60250.0,60249.0,0.15420851]
[1723984668291,0.218008,60250.0,60249.0,0.17462695]
[1723984668695,0.450373,60250.0,60249.0,0.1746268]
[1723984669494,0.118008,60250.0,60249.0,0.1746268]
[1723984670569,0.350373,60250.0,60249.0,0.1746268]
[1723984670776,0.001826,60250.0,60249.0,0.1746268]
[1723984673283,0.118008,60250.0,60249.0,0.1746268]
[1723984673461,0.118008,60250.0,60249.0,0.15420851]
[1723984673808,0.118008,60250.0,60249.0,0.17462582]
[1723984674109,0.118008,60250.0,60249.0,0.15420851]
[1723984674556,0.118008,60250.0,60249.0,0.17462582]
[1723984674726,0.001826,60250.0,60249.0,0.15420851]
[1723984674934,0.001826,60250.0,60249.0,0.17462529]
[1723984676240,0.118008,60250.0,60249.0,0.17462529]
[1723984677355,0.118008,60250.0,60249.0,0.15420851]
[1723984677567,0.118008,60250.0,60249.0,0.17462487]
[1723984677967,0.001826,60250.0,60249.0,0.17462487]
[1723984678676,0.001826,60250.0,60249.0,0.15420851]
[1723984678893,0.001826,60250.0,60249.0,0.17462515]
[1723984679512,0.001826,60250.0,60249.0,0.17462521]
[1723984679965,0.001826,60250.0,60249.0,0.29080921]
[1723984680194,0.001826,60250.0,60249.0,0.17462521]
[1723984681481,0.118008,60250.0,60249.0,0.17462521]
[1723984681679,0.001826,60250.0,60249.0,0.15420851]
[1723984682084,0.001826,60250.0,60249.0,0.17462815]
[1723984682491,0.001826,60250.0,60249.0,0.15420851]
[1723984683383,0.350373,60250.0,60249.0,0.01240851]
[1723984685122,0.616838,60250.0,60249.0,0.01240851]
[1723984685709,0.616838,60250.0,60249.0,0.001]
[1723984686761,0.582738,60250.0,60249.0,0.001]
[1723984689368,0.59286206,60250.0,60249.0,0.001]
[1723984690578,0.82522706,60250.0,60249.0,0.001]
[1723984690584,0.86322706,60250.0,60249.0,0.001]
[1723984690822,0.96322706,60250.0,60249.0,0.001]
[1723984692548,1.16322706,60250.0,60249.0,0.001]
[1723984697299,1.19732706,60250.0,60249.0,0.001]
[1723984698817,0.348588,60243.0,60242.0,0.0825]
[1723984699308,0.348588,60243.0,60242.0,0.09397249]
[1723984699510,0.116196,60243.0,60242.0,0.09397249]
[1723984699720,0.348588,60243.0,60242.0,0.09397249]
[1723984700573,0.116188,60248.0,60242.0,0.01147249]
[1723984700789,0.54331506,60250.0,60242.0,0.01147249]
[1723984700790,0.116184,60249.0,60247.0,0.0653]
[1723984700998,0.533191,60250.0,60248.0,0.1478]
[1723984700999,0.300826,60250.0,60248.0,0.1478]
[1723984701233,0.200826,60250.0,60249.0,0.1478]
[1723984701635,0.200826,60250.0,60249.0,0.15927603]
[1723984702044,0.317008,60250.0,60249.0,0.15927603]
[1723984703007,0.549373,60250.0,60249.0,0.15927603]
[1723984703326,0.563373,60250.0,60249.0,0.16027603]
[1723984708543,0.79569651,60250.0,60249.0,0.09497603]
[1723984708750,0.79569651,60250.0,60249.0,0.01247603]
[1723984708953,0.79569651,60250.0,60249.0,0.001]
[1723984711727,0.56333151,60250.0,60249.0,0.0835]
[1723984711923,0.56333151,60250.0,60249.0,0.1488]
[1723984713871,0.56333151,60250.0,60249.0,0.15838318]
[1723984714077,0.56333151,60250.0,60249.0,0.1488]
[1723984714832,0.56333151,60250.0,60249.0,0.15838318]
[1723984715042,0.56333151,60250.0,60249.0,0.01058318]
[1723984715043,1.28378696,60250.0,60249.0,0.01058318]
[1723984715239,1.20016151,60250.0,60249.0,0.001]
[1723984718429,1.20016151,60250.0,60249.0,0.0019086]
[1723984719039,1.20016151,60250.0,60249.0,0.0009086]
[1723984719239,1.19216151,60250.0,60249.0,0.0009086]
[1723984719773,1.18616151,60250.0,60249.0,0.0009086]
[1723984720099,1.43852651,60250.0,60249.0,0.0029086]
[1723984720504,1.43852651,60250.0,60249.0,0.0019086]
[1723984720505,1.42652651,60250.0,60249.0,0.0019086]